[Event "US College Final 4-ch"]
[Site "New York"]
[Date "2015.03.29"]
[Round "3"]
[White "Kritz, Leonid"]
[Black "Ringoir, Tanguy"]
[Result "1-0"]
[ECO "C60"]
[WhiteElo "2583"]
[BlackElo "2526"]
[Annotator "Robot 3"]
[PlyCount "53"]
[EventDate "2015.??.??"]
[EventCountry "USA"]
[WhiteTeam "UT Dallas"]
[BlackTeam "University Maryland"]
[TimeControl "5400+30"]

1. e4 {[%emt 0:00:00]} e5 {[%emt 0:00:00]} 2. Nf3 {[%emt 0:00:01]} Nc6 {[%emt
0:00:00]} 3. Bb5 {[%emt 0:00:04]} Nge7 {[%emt 0:00:00]} 4. d4 {[%emt 0:01:25]}
exd4 {[%emt 0:00:18]} 5. Nxd4 {[%emt 0:00:26]} g6 {[%emt 0:00:17]} 6. Nc3 {
[%emt 0:03:15]} Bg7 {[%emt 0:03:05]} 7. Be3 {[%emt 0:00:05]} O-O {[%emt 0:00:
05]} 8. Qd2 {[%emt 0:00:08]} d5 {[%emt 0:08:02]} 9. O-O-O {[%emt 0:24:53]} Nxd4
{[%emt 0:04:08]} 10. Bxd4 {[%emt 0:00:11]} c6 {[%emt 0:00:03]} 11. Bxg7 {[%emt
0:01:38]} Kxg7 {[%emt 0:06:15]} 12. Qd4+ {[%emt 0:00:05]} Kg8 {[%emt 0:05:11]}
13. Be2 {[%emt 0:07:51]} Be6 {[%emt 0:00:12]} 14. h4 {[%emt 0:00:07]} dxe4 {
[%emt 0:01:09]} 15. Qe5 Qb8 {[%emt 0:00:46]} 16. Rd6 {[%emt 0:07:10]} Nf5 {
[%emt 0:30:51]} 17. Nxe4 {[%emt 0:02:02]} Nxd6 {[%emt 0:00:29]} 18. Nf6+ {
[%emt 0:00:58]} Kh8 {[%emt 0:00:01]} 19. h5 {[%emt 0:03:50]} g5 {[%emt 0:00:01]
} 20. Nd7+ {[%emt 0:04:32]} f6 {[%emt 0:00:02]} 21. Qxe6 {[%emt 0:00:17]} Qc7 {
[%emt 0:08:06]} 22. Nxf8 {[%emt 0:01:54]} Rxf8 {[%emt 0:02:50]} 23. Rd1 {[%emt
0:00:22]} Ne8 {[%emt 0:00:04]} 24. Rd7 {[%emt 0:02:42]} Qe5 {[%emt 0:00:10]}
25. Qxe5 {[%emt 0:04:00]} fxe5 {[%emt 0:00:05]} 26. h6 {[%emt 0:00:08]} e4 {
[%emt 0:05:44]} 27. Rd8 {[%emt 0:00:51]} 1-0

[Event "US College Final 4-ch"]
[Site "New York"]
[Date "2015.03.29"]
[Round "3"]
[White "Akshayraj, Kore"]
[Black "Holt, Conrad"]
[Result "0-1"]
[ECO "C42"]
[WhiteElo "2472"]
[BlackElo "2530"]
[Annotator "Robot 3"]
[PlyCount "44"]
[EventDate "2015.??.??"]
[EventCountry "USA"]
[WhiteTeam "University Maryland"]
[BlackTeam "UT Dallas"]
[TimeControl "5400+30"]

1. e4 {[%emt 0:02:19]} e6 {[%emt 0:00:00]} 2. d4 {[%emt 0:00:47]} d5 {[%emt 0:
00:00]} 3. Nd2 {[%emt 0:00:19]} Be7 {[%emt 0:00:00]} 4. Ngf3 {[%emt 0:02:30]}
Nf6 {[%emt 0:00:03]} 5. exd5 {[%emt 0:06:56]} exd5 {[%emt 0:02:17]} 6. Bd3 {
[%emt 0:00:09]} Nc6 {[%emt 0:01:18]} 7. c3 {[%emt 0:01:15]} O-O {[%emt 0:03:51]
} 8. O-O {[%emt 0:00:41]} Bd6 {[%emt 0:00:11]} 9. Re1 {[%emt 0:03:40]} Re8 {
[%emt 0:01:28]} 10. Nf1 {[%emt 0:00:25]} Bg4 {[%emt 0:01:29]} 11. Rxe8+ {[%emt
0:09:07]} Qxe8 {[%emt 0:00:17]} 12. Ne3 {[%emt 0:00:07]} Bh5 {[%emt 0:02:16]}
13. Bd2 {[%emt 0:04:49]} Rd8 {[%emt 0:03:42]} 14. Qe2 {[%emt 0:02:45]} Ne4 {
[%emt 0:06:30]} 15. Nxd5 {[%emt 0:27:53]} Bxf3 {[%emt 0:06:45]} 16. gxf3 {
[%emt 0:00:28]} Nxd2 {[%emt 0:00:18]} 17. Qxd2 {[%emt 0:00:20]} Qe6 {[%emt 0:
08:15]} 18. Ne3 {[%emt 0:00:14]} Qh6 {[%emt 0:04:57]} 19. Kf1 {[%emt 0:01:36]}
Bxh2 {[%emt 0:00:25]} 20. Kg2 {[%emt 0:04:34]} Qg5+ {[%emt 0:04:04]} 21. Kh1 {
[%emt 0:04:05]} Rd6 {[%emt 0:03:55]} 22. Re1 {[%emt 0:00:40]} Be5 {[%emt 0:02:
27]} 0-1

[Event "US College Final 4-ch"]
[Site "New York"]
[Date "2015.03.29"]
[Round "3"]
[White "Kadric, Denis"]
[Black "Bregadze, Levan"]
[Result "1-0"]
[ECO "B46"]
[WhiteElo "2500"]
[BlackElo "2484"]
[Annotator "Robot 3"]
[PlyCount "69"]
[EventDate "2015.??.??"]
[EventCountry "USA"]
[WhiteTeam "UT Dallas"]
[BlackTeam "University Maryland"]
[TimeControl "5400+30"]

1. e4 {[%emt 0:00:00]} c5 {[%emt 0:00:00]} 2. Nc3 {[%emt 0:00:00]} a6 {[%emt 0:
00:03]} 3. Nf3 {[%emt 0:00:18]} e6 {[%emt 0:01:08]} 4. d4 {[%emt 0:00:04]} cxd4
{[%emt 0:00:09]} 5. Nxd4 {[%emt 0:00:04]} Nc6 {[%emt 0:00:27]} 6. Bf4 {[%emt 0:
00:41]} Bb4 {[%emt 0:02:37]} 7. Nxc6 {[%emt 0:01:33]} bxc6 {[%emt 0:00:25]} 8.
Qd4 {[%emt 0:00:06]} Bf8 {[%emt 0:12:11]} 9. e5 {[%emt 0:09:33]} Ne7 {[%emt 0:
01:53]} 10. Ne4 {[%emt 0:02:16]} Nf5 {[%emt 0:07:17]} 11. Qd2 {[%emt 0:07:37]}
Qb6 {[%emt 0:08:14]} 12. c3 {[%emt 0:00:27]} Be7 {[%emt 0:01:04]} 13. O-O-O {
[%emt 0:14:08]} Rb8 {[%emt 0:02:56]} 14. g4 {[%emt 0:07:38]} Nh4 {[%emt 0:01:
12]} 15. b3 {[%emt 0:08:51]} Qa5 {[%emt 0:10:08]} 16. Nd6+ {[%emt 0:09:33]}
Bxd6 {[%emt 0:02:49]} 17. exd6 c5 {[%emt 0:03:11]} 18. Qb2 {[%emt 0:10:16]} Bb7
{[%emt 0:04:49]} 19. Rg1 {[%emt 0:00:04]} Bf3 {[%emt 0:02:35]} 20. Rd2 {[%emt
0:00:32]} Ng6 {[%emt 0:04:44]} 21. Be3 {[%emt 0:01:30]} c4 {[%emt 0:04:40]} 22.
Bxc4 {[%emt 0:07:00]} Ne5 {[%emt 0:01:05]} 23. Bf1 {[%emt 0:00:47]} O-O {[%emt
0:00:24]} 24. Bd4 {[%emt 0:01:53]} Nc6 {[%emt 0:01:47]} 25. Rg3 {[%emt 0:01:51]
} e5 {[%emt 0:02:25]} 26. Be3 {[%emt 0:06:15]} Be4 {[%emt 0:00:40]} 27. f3 {
[%emt 0:02:29]} Bg6 {[%emt 0:00:34]} 28. h4 {[%emt 0:00:18]} Rfc8 {[%emt 0:00:
49]} 29. h5 {[%emt 0:01:05]} Nd4 {[%emt 0:00:53]} 30. Bxd4 {[%emt 0:02:38]}
exd4 {[%emt 0:00:30]} 31. c4 {[%emt 0:00:01]} Re8 {[%emt 0:10:49]} 32. Rgg2 {
[%emt 0:03:08]} Qg5 {[%emt 0:03:11]} 33. Be2 {[%emt 0:01:03]} Bxh5 {[%emt 0:00:
04]} 34. f4 {[%emt 0:00:48]} Qg6 {[%emt 0:03:02]} 35. Bd1 {[%emt 0:00:19]} 1-0

[Event "US College Final 4-ch"]
[Site "New York"]
[Date "2015.03.29"]
[Round "3"]
[White "Shoker, Samy"]
[Black "Durarbayli, Yasif"]
[Result "0-1"]
[ECO "A07"]
[WhiteElo "2466"]
[BlackElo "2676"]
[Annotator "Robot 3"]
[PlyCount "108"]
[EventDate "2015.??.??"]
[EventCountry "USA"]
[WhiteTeam "Texas Tech University"]
[BlackTeam "Webster University"]
[TimeControl "5400+30"]

1. Nf3 {[%emt 0:00:00]} c5 {[%emt 0:00:00]} 2. g3 {[%emt 0:00:00]} Nc6 {[%emt
0:00:00]} 3. Bg2 {[%emt 0:00:00]} g6 {[%emt 0:00:00]} 4. O-O {[%emt 0:00:00]}
Bg7 {[%emt 0:00:00]} 5. d3 {[%emt 0:03:21]} d5 {[%emt 0:03:00]} 6. Nc3 {[%emt
0:01:53]} Nf6 {[%emt 0:00:29]} 7. Bf4 {[%emt 0:00:31]} O-O {[%emt 0:01:15]} 8.
Ne5 {[%emt 0:04:16]} Nd4 {[%emt 0:00:15]} 9. Bd2 {[%emt 0:01:53]} Ne6 {[%emt 0:
01:42]} 10. f4 {[%emt 0:07:29]} d4 {[%emt 0:00:17]} 11. Nb5 {[%emt 0:04:10]}
Nd7 {[%emt 0:03:29]} 12. Nxd7 {[%emt 0:05:55]} Bxd7 {[%emt 0:00:12]} 13. a4 {
[%emt 0:00:06]} Qc8 {[%emt 0:01:06]} 14. Qe1 {[%emt 0:01:51]} Bc6 {[%emt 0:00:
00]} 15. Qf2 {[%emt 0:01:48]} a6 {[%emt 0:01:10]} 16. Na3 {[%emt 0:00:14]} b5 {
[%emt 0:00:14]} 17. Ba5 {[%emt 0:04:25]} Rb8 {[%emt 0:02:19]} 18. h4 {[%emt 0:
13:20]} f5 {[%emt 0:05:25]} 19. Bf3 {[%emt 0:07:46]} Qb7 {[%emt 0:01:04]} 20.
Qg2 {[%emt 0:08:50]} Rfc8 {[%emt 0:00:26]} 21. Kh2 {[%emt 0:02:58]} Bxf3 {
[%emt 0:00:48]} 22. Rxf3 {[%emt 0:02:27]} c4 {[%emt 0:02:07]} 23. axb5 {[%emt
0:06:56]} axb5 {[%emt 0:00:16]} 24. b4 {[%emt 0:02:24]} c3 {[%emt 0:05:46]} 25.
Rb1 {[%emt 0:00:26]} Qd5 {[%emt 0:03:47]} 26. Rff1 {[%emt 0:07:37]} Qxg2+ {
[%emt 0:00:36]} 27. Kxg2 {[%emt 0:00:02]} h5 {[%emt 0:00:07]} 28. Rfe1 {[%emt
0:01:45]} Kf7 {[%emt 0:00:08]} 29. Rb3 {[%emt 0:01:45]} Ke8 {[%emt 0:00:59]}
30. Kf2 {[%emt 0:01:25]} Rc6 {[%emt 0:00:23]} 31. Rbb1 {[%emt 0:00:47]} Kd7 {
[%emt 0:00:23]} 32. Kg2 {[%emt 0:00:20]} Nf8 {[%emt 0:01:23]} 33. e4 {[%emt 0:
00:39]} dxe3 {[%emt 0:00:05]} 34. Rxe3 {[%emt 0:00:04]} Bd4 {[%emt 0:00:05]}
35. Re2 {[%emt 0:00:12]} Ne6 {[%emt 0:03:04]} 36. Rbe1 {[%emt 0:01:23]} Rd6 {
[%emt 0:00:40]} 37. Kf1 {[%emt 0:01:32]} Bf6 {[%emt 0:00:07]} 38. Re3 {[%emt 0:
01:47]} Nd4 {[%emt 0:00:06]} 39. Kg2 {[%emt 0:00:21]} Nc6 {[%emt 0:03:06]} 40.
Kf3 {[%emt 0:02:07]} Rd5 {[%emt 0:01:39]} 41. Rb1 {[%emt 0:01:13]} Ra8 {[%emt
0:00:18]} 42. Ree1 {[%emt 0:00:42]} e5 {[%emt 0:01:05]} 43. fxe5 {[%emt 0:00:
47]} Bxe5 {[%emt 0:00:10]} 44. Kg2 {[%emt 0:02:02]} Nxa5 {[%emt 0:00:14]} 45.
bxa5 {[%emt 0:00:06]} Rxa5 {[%emt 0:00:03]} 46. Rb3 {[%emt 0:00:10]} Bd6 {
[%emt 0:00:10]} 47. Nb1 {[%emt 0:00:28]} b4 {[%emt 0:00:05]} 48. Kf3 {[%emt 0:
00:16]} Rd4 {[%emt 0:00:31]} 49. Rg1 {[%emt 0:00:20]} Rg4 {[%emt 0:00:14]} 50.
Rg2 {[%emt 0:00:10]} Rc5 {[%emt 0:00:18]} 51. Rg1 {[%emt 0:00:20]} Rc8 {[%emt
0:00:07]} 52. Rg2 {[%emt 0:00:10]} Ke6 {[%emt 0:00:05]} 53. Rg1 {[%emt 0:00:32]
} Kd5 {[%emt 0:00:05]} 54. Rg2 {[%emt 0:00:05]} Ke5 0-1

[Event "US College Final 4-ch"]
[Site "New York"]
[Date "2015.03.29"]
[Round "3"]
[White "Nyzhnyk, Illya"]
[Black "Gorovets, Andrey"]
[Result "1/2-1/2"]
[ECO "A39"]
[WhiteElo "2622"]
[BlackElo "2518"]
[Annotator "Robot 3"]
[PlyCount "107"]
[EventDate "2015.??.??"]
[EventCountry "USA"]
[WhiteTeam "Webster University"]
[BlackTeam "Texas Tech University"]
[TimeControl "5400+30"]

1. d4 {[%emt 0:00:00]} Nf6 {[%emt 0:00:00]} 2. Nf3 {[%emt 0:00:00]} g6 {[%emt
0:01:14]} 3. g3 {[%emt 0:00:00]} Bg7 {[%emt 0:01:12]} 4. Bg2 {[%emt 0:00:00]}
c5 {[%emt 0:01:28]} 5. O-O {[%emt 0:01:47]} cxd4 {[%emt 0:02:52]} 6. Nxd4 {
[%emt 0:00:04]} Nc6 {[%emt 0:00:47]} 7. c4 {[%emt 0:01:30]} O-O {[%emt 0:00:27]
} 8. Nc3 {[%emt 0:00:03]} Nxd4 {[%emt 0:00:56]} 9. Qxd4 {[%emt 0:00:05]} d6 {
[%emt 0:00:06]} 10. Qd2 {[%emt 0:00:43]} Be6 {[%emt 0:16:26]} 11. Bxb7 {[%emt
0:02:22]} Rb8 {[%emt 0:01:03]} 12. Bd5 {[%emt 0:00:04]} Nxd5 {[%emt 0:01:35]}
13. Nxd5 {[%emt 0:00:58]} Bxd5 {[%emt 0:02:01]} 14. cxd5 {[%emt 0:00:05]} Qd7 {
[%emt 0:06:26]} 15. Rd1 {[%emt 0:09:00]} Rfc8 {[%emt 0:12:26]} 16. Rb1 {[%emt
0:00:51]} Qf5 {[%emt 0:03:40]} 17. Qd3 {[%emt 0:00:04]} Rc2 {[%emt 0:01:08]}
18. Qxf5 {[%emt 0:00:06]} gxf5 {[%emt 0:00:03]} 19. Kf1 {[%emt 0:00:13]} Bxb2 {
[%emt 0:10:39]} 20. Be3 {[%emt 0:02:08]} Rb4 {[%emt 0:05:03]} 21. Rd2 {[%emt 0:
12:49]} Rc1+ {[%emt 0:02:10]} 22. Rxc1 {[%emt 0:00:38]} Bxc1 {[%emt 0:00:02]}
23. Rd4 {[%emt 0:00:06]} Rxd4 {[%emt 0:00:01]} 24. Bxd4 {[%emt 0:00:05]} a6 {
[%emt 0:00:02]} 25. Ke1 {[%emt 0:00:05]} e6 {[%emt 0:05:55]} 26. e3 {[%emt 0:
00:55]} Ba3 {[%emt 0:08:14]} 27. Kd2 {[%emt 0:00:25]} e5 {[%emt 0:03:58]} 28.
Bc3 {[%emt 0:02:36]} Kf8 {[%emt 0:00:14]} 29. Kd3 {[%emt 0:00:26]} Ke7 {[%emt
0:01:20]} 30. Kc4 {[%emt 0:00:05]} Kd7 {[%emt 0:01:25]} 31. h3 {[%emt 0:01:28]}
h5 {[%emt 0:03:04]} 32. Bb4 {[%emt 0:00:38]} Bxb4 {[%emt 0:03:26]} 33. Kxb4 {
[%emt 0:00:05]} Kc7 {[%emt 0:00:02]} 34. Ka5 {[%emt 0:00:17]} Kb7 {[%emt 0:00:
10]} 35. f3 {[%emt 0:00:56]} Ka7 {[%emt 0:01:56]} 36. Kb4 {[%emt 0:02:21]} Kb6
{[%emt 0:00:09]} 37. Kc4 {[%emt 0:00:05]} f6 {[%emt 0:05:14]} 38. Kb4 {[%emt 0:
01:14]} Kc7 {[%emt 0:00:00]} 39. Kc3 {[%emt 0:00:00]} Kb6 {[%emt 0:00:51]} 40.
Kc4 {[%emt 0:00:25]} Ka5 {[%emt 0:01:42]} 41. Kd3 {[%emt 0:06:53]} Kb4 {[%emt
0:00:24]} 42. h4 {[%emt 0:02:32]} Kc5 {[%emt 0:00:23]} 43. e4 {[%emt 0:06:02]}
fxe4+ {[%emt 0:00:08]} 44. fxe4 {[%emt 0:00:03]} f5 {[%emt 0:00:06]} 45. exf5 {
[%emt 0:00:29]} Kxd5 {[%emt 0:00:02]} 46. Ke3 {[%emt 0:00:04]} e4 {[%emt 0:00:
42]} 47. Kf4 {[%emt 0:00:40]} e3 {[%emt 0:01:31]} 48. Kxe3 {[%emt 0:00:11]} Ke5
{[%emt 0:00:01]} 49. f6 {[%emt 0:00:07]} Kxf6 {[%emt 0:00:01]} 50. Kf4 {[%emt
0:00:04]} a5 {[%emt 0:01:41]} 51. a4 {[%emt 0:00:05]} Kg6 {[%emt 0:00:29]} 52.
g4 {[%emt 0:04:09]} hxg4 {[%emt 0:00:07]} 53. Kxg4 {[%emt 0:00:03]} Kh6 {[%emt
0:00:54]} 54. Kf5 {[%emt 0:00:14]} 1/2-1/2

[Event "US College Final 4-ch"]
[Site "New York"]
[Date "2015.03.29"]
[Round "3"]
[White "Moradiabadi, Elshan"]
[Black "Robson, Ray"]
[Result "1/2-1/2"]
[ECO "A16"]
[WhiteElo "2568"]
[BlackElo "2656"]
[Annotator "Robot 3"]
[PlyCount "30"]
[EventDate "2015.??.??"]
[EventCountry "USA"]
[WhiteTeam "Texas Tech University"]
[BlackTeam "Webster University"]
[TimeControl "5400+30"]

1. Nf3 {[%emt 0:00:00]} Nf6 {[%emt 0:01:52]} 2. c4 {[%emt 0:00:00]} g6 {[%emt
0:00:30]} 3. Nc3 {[%emt 0:00:29]} d5 {[%emt 0:00:30]} 4. cxd5 {[%emt 0:00:30]}
Nxd5 {[%emt 0:00:30]} 5. e4 Nxc3 {[%emt 0:00:30]} 6. bxc3 Bg7 {[%emt 0:00:30]}
7. Be2 {[%emt 0:01:30]} c5 {[%emt 0:00:30]} 8. O-O {[%emt 0:00:48]} Nc6 {[%emt
0:05:23]} 9. Qa4 {[%emt 0:00:06]} Bd7 {[%emt 0:09:08]} 10. Qa3 {[%emt 0:00:28]}
Qa5 {[%emt 0:22:14]} 11. Rd1 {[%emt 0:01:03]} O-O {[%emt 0:06:07]} 12. Rb1 {
[%emt 0:00:53]} Qxa3 {[%emt 0:11:27]} 13. Bxa3 {[%emt 0:00:02]} b6 {[%emt 0:00:
22]} 14. d4 {[%emt 0:00:05]} Rfd8 {[%emt 0:03:15]} 15. dxc5 {[%emt 0:04:04]}
Bxc3 {[%emt 0:22:26]} 1/2-1/2

[Event "US College Final 4-ch"]
[Site "New York"]
[Date "2015.03.29"]
[Round "3"]
[White "Le, Quang Liem"]
[Black "Zherebukh, Yaroslav"]
[Result "1-0"]
[ECO "A79"]
[WhiteElo "2676"]
[BlackElo "2640"]
[Annotator "Robot 3"]
[PlyCount "105"]
[EventDate "2015.??.??"]
[EventCountry "USA"]
[WhiteTeam "Webster University"]
[BlackTeam "Texas Tech University"]
[TimeControl "5400+30"]

1. d4 {[%emt 0:00:00]} Nf6 {[%emt 0:00:00]} 2. c4 {[%emt 0:00:00]} c5 {[%emt 0:
00:00]} 3. d5 {[%emt 0:00:01]} e6 {[%emt 0:00:00]} 4. Nc3 {[%emt 0:00:12]} exd5
{[%emt 0:00:00]} 5. cxd5 {[%emt 0:00:10]} d6 {[%emt 0:00:00]} 6. Nf3 {[%emt 0:
02:06]} g6 {[%emt 0:00:00]} 7. Nd2 {[%emt 0:00:21]} Bg7 {[%emt 0:00:00]} 8. e4
{[%emt 0:00:09]} O-O {[%emt 0:00:00]} 9. Be2 {[%emt 0:00:08]} Re8 {[%emt 0:00:
02]} 10. O-O {[%emt 0:00:13]} Na6 {[%emt 0:00:46]} 11. f3 {[%emt 0:01:11]} Nc7
{[%emt 0:01:58]} 12. a4 {[%emt 0:00:32]} Nd7 {[%emt 0:01:51]} 13. Nc4 {[%emt 0:
04:46]} Ne5 {[%emt 0:00:45]} 14. Ne3 {[%emt 0:00:12]} f5 {[%emt 0:04:20]} 15.
exf5 {[%emt 0:01:40]} gxf5 {[%emt 0:02:20]} 16. f4 {[%emt 0:00:19]} Ng6 {[%emt
0:02:31]} 17. Kh1 {[%emt 0:00:45]} Qf6 {[%emt 0:19:57]} 18. Bd3 {[%emt 0:07:39]
} Bd7 {[%emt 0:00:55]} 19. Qc2 {[%emt 0:06:46]} Rf8 {[%emt 0:02:17]} 20. Bd2 {
[%emt 0:02:45]} Ne7 {[%emt 0:09:25]} 21. Rab1 {[%emt 0:10:39]} Rac8 {[%emt 0:
07:14]} 22. Nb5 {[%emt 0:12:20]} Nxb5 {[%emt 0:09:48]} 23. axb5 {[%emt 0:00:17]
} Qf7 {[%emt 0:01:24]} 24. Bc4 {[%emt 0:08:02]} Ra8 {[%emt 0:08:00]} 25. Qd3 {
[%emt 0:04:47]} Kh8 {[%emt 0:09:33]} 26. b4 {[%emt 0:03:30]} b6 {[%emt 0:01:42]
} 27. Rfe1 {[%emt 0:04:39]} Ng6 {[%emt 0:00:42]} 28. g3 {[%emt 0:01:00]} Qf6 {
[%emt 0:03:27]} 29. bxc5 {[%emt 0:04:25]} bxc5 {[%emt 0:00:45]} 30. Rb3 {[%emt
0:02:24]} Qd4 {[%emt 0:01:20]} 31. Qc2 {[%emt 0:03:52]} Qe4+ {[%emt 0:06:19]}
32. Qxe4 {[%emt 0:00:30]} fxe4 {[%emt 0:00:02]} 33. b6 {[%emt 0:05:52]} axb6 {
[%emt 0:02:10]} 34. Rxb6 {[%emt 0:00:11]} Rfb8 {[%emt 0:02:53]} 35. Rxd6 {
[%emt 0:00:18]} Bh3 {[%emt 0:01:10]} 36. Ra6 {[%emt 0:03:32]} Rxa6 {[%emt 0:01:
04]} 37. Bxa6 {[%emt 0:00:02]} Bd4 {[%emt 0:01:04]} 38. Bf1 {[%emt 0:01:47]}
Bxf1 {[%emt 0:01:07]} 39. Nxf1 {[%emt 0:00:07]} Rd8 {[%emt 0:01:52]} 40. Rxe4 {
[%emt 0:00:18]} Rxd5 {[%emt 0:00:03]} 41. Ne3 {[%emt 0:00:44]} Rd8 {[%emt 0:00:
20]} 42. Nf5 {[%emt 0:00:32]} Bb2 {[%emt 0:01:19]} 43. Be3 {[%emt 0:01:24]} Ba3
{[%emt 0:00:03]} 44. Re6 {[%emt 0:01:41]} Nf8 {[%emt 0:00:38]} 45. Rc6 {[%emt
0:00:33]} Rd5 {[%emt 0:00:35]} 46. g4 {[%emt 0:00:55]} h5 {[%emt 0:00:19]} 47.
Rh6+ {[%emt 0:00:52]} Kg8 {[%emt 0:00:03]} 48. Rxh5 {[%emt 0:01:21]} Rd1+ {
[%emt 0:00:16]} 49. Kg2 {[%emt 0:00:01]} c4 {[%emt 0:00:47]} 50. Rg5+ {[%emt 0:
00:43]} Kf7 {[%emt 0:00:05]} 51. Rg7+ {[%emt 0:00:13]} Ke6 {[%emt 0:00:03]} 52.
Rc7 {[%emt 0:00:12]} Kd5 {[%emt 0:00:04]} 53. Bf2 {[%emt 0:00:30]} 1-0